[Event "European School-ch 2019"]
[Site "Mamaia"]
[Date "2019.06.02"]
[Round "3.16"]
[White "Larichev, Prokhor"]
[Black "Creanga, Robert-Ionut"]
[Result "1/2-1/2"]
[ECO "B07"]
[WhiteElo "1764"]
[BlackElo "2128"]
[Annotator "ChessBase"]
[PlyCount "131"]
[EventDate "2019.05.31"]
[EventType "swiss"]
[EventCountry "ROU"]
[SourceTitle "playchess.com"]
[Source "ChessBase"]
[SourceQuality "1"]
[TimeControl "40/5400+30:1800+30"]

1. e4 {[%emt 0:00:00]} d6 {[%emt 0:00:00]} 2. d4 {[%emt 0:00:00]} Nf6 {[%emt 0:00:39]} 3. Nc3 {[%emt 0:00:32]} g6 {[%emt 0:00:08]} 4. f3 {[%emt 0:01:00]} Bg7 {[%emt 0:06:26]} 5. Be3 {[%emt 0:01:01]} c6 {[%emt 0:01:36]} 6. Qd2 {[%emt 0:00:52]} Nbd7 {[%emt 0:02:47]} 7. h4 {[%emt 0:01:22]} h5 {[%emt 0:11:09]} 8. Nh3 {[%emt 0:01:38]} b5 {[%emt 0:09:00]} 9. Ng5 {[%emt 0:00:56]} Nb6 {[%emt 0:04:03]} 10. Nd1 {[%emt 0:12:22]} Nfd7 {[%emt 0:20:31]} 11. c3 {[%emt 0:03:07]} Qc7 {[%emt 0:04:43]} 12. Be2 {[%emt 0:01:30]} e5 {[%emt 0:04:30]} 13. O-O {[%emt 0:03:47]} O-O {[%emt 0:05:50]} 14. Nf2 {[%emt 0:05:12]} Nc4 {[%emt 0:04:45]} 15. Bxc4 {[%emt 0:00:11]} bxc4 {[%emt 0:00:02]} 16. f4 {[%emt 0:02:28]} Re8 {[%emt 0:06:49]} 17. Qe2 {[%emt 0:05:27]} exd4 {[%emt 0:03:11]} 18. Bxd4 {[%emt 0:04:12]} d5 {[%emt 0:03:37]} 19. Bxg7 {[%emt 0:02:11]} Kxg7 {[%emt 0:00:10]} 20. f5 {[%emt 0:03:30]} Nf6 {[%emt 0:02:50]} 21. fxg6 {[%emt 0:00:42]} fxg6 {[%emt 0:00:13]} 22. Nfh3 {[%emt 0:01:58]} Bxh3 {[%emt 0:01:18]} 23. Qf3 {[%emt 0:07:57]} Nxe4 {[%emt 0:00:56]} 24. Qxh3 {[%emt 0:01:38]} Nxg5 {[%emt 0:01:01]} 25. hxg5 {[%emt 0:00:04]} Rf8 {[%emt 0:00:31]} 26. Rxf8 {[%emt 0:01:11]} Rxf8 {[%emt 0:00:18]} 27. Re1 {[%emt 0:00:30]} Rf7 {[%emt 0:02:25]} 28. Qe3 {[%emt 0:01:24]} Qb6 {[%emt 0:00:12]} 29. Qxb6 {[%emt 0:00:06]} axb6 {[%emt 0:00:01]} 30. Re6 {[%emt 0:00:06]} Rc7 {[%emt 0:00:36]} 31. Kf2 {[%emt 0:01:15]} b5 {[%emt 0:01:34]} 32. a3 {[%emt 0:00:16]} c5 {[%emt 0:01:12]} 33. Rb6 {[%emt 0:00:32]} b4 {[%emt 0:00:31]} 34. axb4 {[%emt 0:00:05]} cxb4 {[%emt 0:00:06]} 35. Rxb4 {[%emt 0:00:07]} Re7 {[%emt 0:01:24]} 36. b3 {[%emt 0:00:48]} cxb3 {[%emt 0:00:19]} 37. Rxb3 {[%emt 0:00:03]} Re5 {[%emt 0:00:07]} 38. Rb7+ {[%emt 0:00:37]} Kg8 {[%emt 0:00:51]} 39. Rb5 {[%emt 0:00:34]} Rxg5 {[%emt 0:01:09]} 40. Rb4 {[%emt 0:00:00]} Kg7 {[%emt 0:00:00]} 41. Rd4 {[%emt 0:01:09]} Kf6 {[%emt 0:03:30]} 42. c4 {[%emt 0:00:06]} dxc4 {[%emt 0:00:35]} 43. Rxc4 {[%emt 0:00:03]} Rf5+ {[%emt 0:06:11]} 44. Kg3 {[%emt 0:00:31]} Kg5 {[%emt 0:01:03]} 45. Rc6 {[%emt 0:00:43]} Ra5 {[%emt 0:01:17]} 46. Rc4 {[%emt 0:00:12]} Ra3+ {[%emt 0:00:37]} 47. Kh2 {[%emt 0:00:04]} h4 {[%emt 0:04:57]} 48. Rc5+ {[%emt 0:00:14]} Kg4 {[%emt 0:00:24]} 49. Rc4+ {[%emt 0:00:07]} Kh5 {[%emt 0:00:07]} 50. Rc5+ {[%emt 0:00:07]} g5 {[%emt 0:00:15]} 51. Rc4 {[%emt 0:00:05]} Re3 {[%emt 0:00:43]} 52. Rc5 {[%emt 0:00:25]} Kg4 {[%emt 0:01:04]} 53. Rc4+ {[%emt 0:00:10]} Kf5 {[%emt 0:00:07]} 54. Rc5+ {[%emt 0:00:06]} Kf4 {[%emt 0:00:54]} 55. Rc4+ {[%emt 0:00:06]} Kf5 {[%emt 0:02:16]} 56. Rc5+ {[%emt 0:00:06]} Kg4 {[%emt 0:00:04]} 57. Rc4+ {[%emt 0:00:04]} Kh5 {[%emt 0:00:04]} 58. Rc5 {[%emt 0:00:14]} Re4 {[%emt 0:01:51]} 59. Ra5 {[%emt 0:00:36]} Kg4 {[%emt 0:00:23]} 60. Rb5 {[%emt 0:00:06]} Kf4 {[%emt 0:00:40]} 61. Rb8 {[%emt 0:00:17]} g4 {[%emt 0:03:28]} 62. Rf8+ {[%emt 0:00:05]} Ke3 {[%emt 0:00:18]} 63. Rh8 {[%emt 0:00:07]} g3+ {[%emt 0:01:56]} 64. Kh3 {[%emt 0:00:06]} Kf2 {[%emt 0:00:14]} 65. Rf8+ {[%emt 0:00:04]} Ke1 {[%emt 0:01:18]} 66. Rf4 1/2-1/2

[Event "European School-ch 2019"]
[Site "Mamaia"]
[Date "2019.06.02"]
[Round "3.17"]
[White "Triboi, Alexander"]
[Black "Levin, Guy"]
[Result "0-1"]
[ECO "A05"]
[WhiteElo "1748"]
[BlackElo "2054"]
[Annotator "NA"]
[PlyCount "65"]
[EventDate "2019.05.31"]
[EventType "swiss"]
[EventCountry "ROU"]
[SourceTitle "playchess.com"]
[Source "ChessBase"]
[SourceQuality "1"]
[TimeControl "40/5400+30:1800+30"]

1. Nf3 {[%emt 0:00:00]} Nf6 {[%emt 0:00:00]} 2. g3 {[%emt 0:00:00]} e6 {[%emt 0:00:00]} 3. Bg2 {[%emt 0:00:00]} d5 {[%emt 0:00:05]} 4. O-O {[%emt 0:00:00]} Be7 {[%emt 0:00:09]} 5. c4 {[%emt 0:00:15]} dxc4 {[%emt 0:00:32]} 6. Qa4+ {[%emt 0:00:06]} c6 {[%emt 0:00:12]} 7. Qxc4 {[%emt 0:00:06]} b5 {[%emt 0:00:04]} 8. Qc2 {[%emt 0:01:07]} Bb7 {[%emt 0:00:10]} 9. d4 {[%emt 0:03:43]} Nbd7 {[%emt 0:03:09]} 10. Nbd2 {[%emt 0:08:53]} c5 {[%emt 0:00:27]} 11. dxc5 {[%emt 0:01:51]} Nxc5 {[%emt 0:00:13]} 12. b3 {[%emt 0:08:57]} Rc8 {[%emt 0:01:28]} 13. Qd1 {[%emt 0:00:53]} O-O {[%emt 0:02:21]} 14. Bb2 {[%emt 0:00:56]} Nd5 {[%emt 0:05:17]} 15. Rc1 {[%emt 0:01:59]} Bf6 {[%emt 0:03:20]} 16. Bxf6 {[%emt 0:02:47]} Qxf6 {[%emt 0:00:42]} 17. Rxc5 {[%emt 0:06:00]} Rxc5 {[%emt 0:00:37]} 18. Ne4 {[%emt 0:00:01]} Qe7 {[%emt 0:00:02]} 19. Nxc5 {[%emt 0:00:17]} Qxc5 {[%emt 0:00:15]} 20. h3 {[%emt 0:16:25]} Rc8 {[%emt 0:02:22]} 21. e3 {[%emt 0:01:56]} b4 {[%emt 0:10:52]} 22. Nd4 {[%emt 0:07:18]} Nc3 {[%emt 0:02:56]} 23. Qc2 {[%emt 0:04:10]} Ba6 {[%emt 0:00:53]} 24. Re1 {[%emt 0:13:11]} e5 {[%emt 0:01:00]} 25. Nc6 {[%emt 0:00:01]} Rxc6 {[%emt 0:01:51]} 26. Bxc6 {[%emt 0:00:01]} Qxc6 {[%emt 0:00:01]} 27. e4 {[%emt 0:02:56]} Bb7 {[%emt 0:02:06]} 28. f3 {[%emt 0:01:00]} Qd7 {[%emt 0:00:30]} 29. Kg2 {[%emt 0:03:06]} f5 {[%emt 0:01:19]} 30. exf5 {[%emt 0:00:39]} Qd5 {[%emt 0:00:02]} 31. Re3 {[%emt 0:01:26]} e4 {[%emt 0:00:19]} 32. f4 {[%emt 0:02:06]} Nd1 {[%emt 0:00:48]} 33. Qxd1 0-1

[Event "European School-ch 2019"]
[Site "Mamaia"]
[Date "2019.06.02"]
[Round "3.18"]
[White "Tashev, Aleksandar"]
[Black "Chernikov, Ivan"]
[Result "1-0"]
[ECO "A95"]
[WhiteElo "2119"]
[BlackElo "1460"]
[Annotator "ChessBase"]
[PlyCount "51"]
[EventDate "2019.05.31"]
[EventType "swiss"]
[EventCountry "ROU"]
[SourceTitle "playchess.com"]
[Source "ChessBase"]
[SourceQuality "1"]
[TimeControl "40/5400+30:1800+30"]

1. d4 {[%emt 0:00:00]} d5 {[%emt 0:00:00]} 2. Nf3 {[%emt 0:00:00]} f5 {[%emt 0:00:49]} 3. c4 {[%emt 0:03:36]} e6 {[%emt 0:00:09]} 4. Nc3 {[%emt 0:00:34]} Nf6 {[%emt 0:00:30]} 5. g3 {[%emt 0:02:34]} c6 {[%emt 0:01:19]} 6. Bg2 {[%emt 0:04:51]} Be7 {[%emt 0:01:25]} 7. O-O {[%emt 0:01:17]} O-O {[%emt 0:00:36]} 8. a3 {[%emt 0:02:09]} Nbd7 {[%emt 0:01:14]} 9. Qd3 {[%emt 0:01:24]} Ne4 {[%emt 0:00:26]} 10. b4 {[%emt 0:04:18]} Nb6 {[%emt 0:01:56]} 11. c5 {[%emt 0:02:40]} Nd7 {[%emt 0:00:49]} 12. Bb2 {[%emt 0:06:19]} Ndf6 {[%emt 0:02:52]} 13. Ne5 {[%emt 0:01:40]} Nxc3 {[%emt 0:02:19]} 14. Bxc3 {[%emt 0:03:50]} Bd7 {[%emt 0:00:55]} 15. a4 {[%emt 0:00:51]} a6 {[%emt 0:01:01]} 16. Bd2 {[%emt 0:02:37]} Be8 {[%emt 0:02:35]} 17. Rfb1 {[%emt 0:03:44]} Nd7 {[%emt 0:02:08]} 18. Nf3 {[%emt 0:01:45]} f4 {[%emt 0:02:43]} 19. Bxf4 {[%emt 0:08:19]} Bg6 {[%emt 0:00:07]} 20. Qe3 {[%emt 0:00:08]} Bxb1 {[%emt 0:01:05]} 21. Qxe6+ {[%emt 0:01:15]} Kh8 {[%emt 0:00:09]} 22. Rxb1 {[%emt 0:00:08]} Bf6 {[%emt 0:02:03]} 23. Bh3 {[%emt 0:01:20]} Nb8 {[%emt 0:00:55]} 24. Bd6 {[%emt 0:05:22]} Re8 {[%emt 0:01:02]} 25. Qf7 {[%emt 0:00:17]} Rxe2 {[%emt 0:02:32]} 26. Qxb7 1-0

[Event "European School-ch 2019"]
[Site "Mamaia"]
[Date "2019.06.02"]
[Round "3.19"]
[White "Samunenkov, Ihor"]
[Black "Zhelev, Nikolay"]
[Result "1-0"]
[ECO "D34"]
[WhiteElo "1972"]
[BlackElo "1710"]
[Annotator "NA"]
[PlyCount "81"]
[EventDate "2019.05.31"]
[EventType "swiss"]
[EventCountry "ROU"]
[SourceTitle "playchess.com"]
[Source "ChessBase"]
[SourceQuality "1"]
[TimeControl "40/5400+30:1800+30"]

1. d4 {[%emt 0:00:00]} Nf6 {[%emt 0:00:18]} 2. g3 {[%emt 0:00:00]} d5 {[%emt 0:00:42]} 3. Bg2 {[%emt 0:00:02]} c5 {[%emt 0:01:50]} 4. Nf3 {[%emt 0:00:16]} e6 {[%emt 0:02:04]} 5. O-O {[%emt 0:00:37]} Nc6 {[%emt 0:01:48]} 6. c4 {[%emt 0:01:19]} Be7 {[%emt 0:09:51]} 7. Nc3 {[%emt 0:07:21]} O-O {[%emt 0:09:37]} 8. cxd5 {[%emt 0:01:28]} exd5 {[%emt 0:03:07]} 9. Bg5 {[%emt 0:00:12]} c4 {[%emt 0:18:02]} 10. Ne5 {[%emt 0:02:14]} Be6 {[%emt 0:01:49]} 11. Nxc6 {[%emt 0:07:36]} bxc6 {[%emt 0:00:08]} 12. b3 {[%emt 0:00:13]} Qa5 {[%emt 0:07:19]} 13. Qd2 {[%emt 0:04:41]} h6 {[%emt 0:20:06]} 14. Nxd5 {[%emt 0:05:18]} Qd8 {[%emt 0:03:46]} 15. Nxe7+ {[%emt 0:02:52]} Qxe7 {[%emt 0:00:05]} 16. Bxf6 {[%emt 0:00:08]} Qxf6 {[%emt 0:00:09]} 17. Bxc6 {[%emt 0:01:44]} Rad8 {[%emt 0:02:11]} 18. e3 {[%emt 0:05:38]} cxb3 {[%emt 0:01:34]} 19. axb3 {[%emt 0:00:18]} Bxb3 {[%emt 0:00:22]} 20. Rfc1 {[%emt 0:00:41]} Rd6 {[%emt 0:01:46]} 21. Bg2 {[%emt 0:03:33]} a6 {[%emt 0:00:32]} 22. Qd3 {[%emt 0:01:17]} Rb6 {[%emt 0:04:04]} 23. Rcb1 {[%emt 0:03:18]} Rfb8 {[%emt 0:00:34]} 24. Ra3 {[%emt 0:02:59]} Be6 {[%emt 0:04:20]} 25. Rxb6 {[%emt 0:03:21]} Rxb6 {[%emt 0:00:06]} 26. Rxa6 {[%emt 0:01:19]} Rxa6 {[%emt 0:01:12]} 27. Qxa6 {[%emt 0:00:08]} Qe7 {[%emt 0:02:15]} 28. Qa8+ {[%emt 0:00:38]} Kh7 {[%emt 0:00:09]} 29. Qe4+ {[%emt 0:00:09]} f5 {[%emt 0:00:31]} 30. Qe5 {[%emt 0:00:06]} Qf7 {[%emt 0:01:01]} 31. d5 {[%emt 0:00:24]} Bd7 {[%emt 0:00:03]} 32. h3 {[%emt 0:00:21]} h5 {[%emt 0:01:01]} 33. Qf4 {[%emt 0:01:14]} Qf6 {[%emt 0:00:16]} 34. h4 {[%emt 0:00:30]} Qe7 {[%emt 0:00:58]} 35. Kh2 {[%emt 0:00:58]} g6 {[%emt 0:00:34]} 36. f3 {[%emt 0:00:15]} Kg7 {[%emt 0:00:28]} 37. e4 {[%emt 0:00:08]} fxe4 {[%emt 0:00:11]} 38. fxe4 {[%emt 0:00:05]} Qf6 {[%emt 0:00:16]} 39. e5 {[%emt 0:00:23]} Qxf4 {[%emt 0:00:27]} 40. gxf4 {[%emt 0:00:00]} Bf5 {[%emt 0:00:00]} 41. Kg3 {[%emt 0:00:08]} 1-0

[Event "European School-ch 2019"]
[Site "Mamaia"]
[Date "2019.06.02"]
[Round "3.20"]
[White "Durak, Can"]
[Black "Magold, Filip"]
[Result "1-0"]
[ECO "E11"]
[WhiteElo "1646"]
[BlackElo "1906"]
[Annotator "NA"]
[PlyCount "91"]
[EventDate "2019.05.31"]
[EventType "swiss"]
[EventCountry "ROU"]
[SourceTitle "playchess.com"]
[Source "ChessBase"]
[SourceQuality "1"]
[TimeControl "40/5400+30:1800+30"]

1. d4 Nf6 2. c4 e6 3. Nf3 Bb4+ 4. Bd2 Be7 5. Nc3 b6 6. Bg5 Bb7 7. e3 d6 8. Bd3 Nbd7 9. O-O O-O 10. Nd2 c5 11. Qc2 h6 12. Bxf6 Bxf6 13. Bh7+ Kh8 14. Be4 Bxe4 15. Ndxe4 cxd4 16. exd4 Bxd4 17. Rad1 Bc5 18. Nxd6 Qb8 19. Nde4 Ne5 20. Nxc5 bxc5 21. b3 Ng4 22. g3 f5 23. Qe2 Re8 24. Rfe1 e5 25. h3 Nf6 26. Qf3 g6 27. Qc6 Kg7 28. Qxc5 f4 29. Nd5 fxg3 30. Qc7+ Qxc7 31. Nxc7 gxf2+ 32. Kxf2 e4 33. Nxa8 Rxa8 34. c5 Rf8 35. Kg2 Rc8 36. b4 a5 37. a3 axb4 38. axb4 Kf7 39. Rf1 Ke7 40. Rd6 Nd7 41. Rxg6 Ne5 42. Rxh6 Rg8+ 43. Kf2 Nc4 44. Re1 Rf8+ 45. Ke2 Rf3 46. Rh4 1-0

[Event "European School-ch 2019"]
[Site "Mamaia"]
[Date "2019.06.02"]
[Round "3.21"]
[White "Akkas, Doruk"]
[Black "Gurel, Ediz"]
[Result "0-1"]
[ECO "B40"]
[WhiteElo "1565"]
[BlackElo "1914"]
[Annotator "NA"]
[PlyCount "112"]
[EventDate "2019.05.31"]
[EventType "swiss"]
[EventCountry "ROU"]
[SourceTitle "playchess.com"]
[Source "ChessBase"]
[SourceQuality "1"]
[TimeControl "40/5400+30:1800+30"]

1. e4 {[%emt 0:00:00]} c5 {[%emt 0:00:00]} 2. Nf3 {[%emt 0:00:02]} e6 {[%emt 0:00:29]} 3. b3 {[%emt 0:00:34]} b6 {[%emt 0:00:23]} 4. Bb2 {[%emt 0:03:48]} Bb7 {[%emt 0:00:46]} 5. e5 {[%emt 0:01:33]} Nc6 {[%emt 0:01:29]} 6. Nc3 {[%emt 0:04:34]} Nh6 {[%emt 0:12:20]} 7. Bd3 {[%emt 0:02:02]} Be7 {[%emt 0:02:51]} 8. O-O {[%emt 0:01:55]} O-O {[%emt 0:01:07]} 9. h3 {[%emt 0:01:26]} f5 {[%emt 0:04:04]} 10. Re1 {[%emt 0:10:13]} a6 {[%emt 0:01:52]} 11. Bf1 {[%emt 0:04:40]} Nf7 {[%emt 0:02:33]} 12. a4 {[%emt 0:03:44]} Qc7 {[%emt 0:03:45]} 13. Nb1 {[%emt 0:02:02]} g5 {[%emt 0:02:52]} 14. Qe2 {[%emt 0:03:39]} h5 {[%emt 0:01:56]} 15. Nh2 {[%emt 0:09:32]} g4 {[%emt 0:00:14]} 16. hxg4 {[%emt 0:00:45]} hxg4 {[%emt 0:00:30]} 17. Nxg4 {[%emt 0:02:00]} fxg4 {[%emt 0:08:36]} 18. Qxg4+ {[%emt 0:00:50]} Ng5 {[%emt 0:00:03]} 19. f4 {[%emt 0:01:19]} Rf5 {[%emt 0:00:10]} 20. Bd3 {[%emt 0:04:53]} Raf8 {[%emt 0:05:01]} 21. Bxf5 {[%emt 0:06:24]} Rxf5 {[%emt 0:00:29]} 22. Re2 {[%emt 0:03:10]} Nd4 {[%emt 0:02:00]} 23. Bxd4 {[%emt 0:01:11]} cxd4 {[%emt 0:00:06]} 24. d3 {[%emt 0:08:06]} Kf8 {[%emt 0:17:16]} 25. fxg5 {[%emt 0:00:35]} Bf3 {[%emt 0:00:05]} 26. gxf3 {[%emt 0:04:51]} Rxg5 {[%emt 0:00:06]} 27. Na3 {[%emt 0:01:38]} Ke8 {[%emt 0:03:56]} 28. Nc4 {[%emt 0:00:46]} Rxg4+ {[%emt 0:00:52]} 29. fxg4 {[%emt 0:00:02]} b5 {[%emt 0:00:10]} 30. axb5 {[%emt 0:00:59]} axb5 {[%emt 0:00:34]} 31. Na3 {[%emt 0:03:16]} Qc3 {[%emt 0:00:48]} 32. Ra2 {[%emt 0:09:49]} Qa5 {[%emt 0:00:10]} 33. Rh2 {[%emt 0:04:38]} Bxa3 {[%emt 0:02:47]} 34. Ra1 {[%emt 0:00:48]} Kf7 {[%emt 0:04:15]} 35. Rf1+ {[%emt 0:00:42]} Kg7 {[%emt 0:00:07]} 36. Rhf2 {[%emt 0:00:34]} Kg6 {[%emt 0:01:13]} 37. g5 {[%emt 0:00:45]} Be7 {[%emt 0:00:08]} 38. Rf7 {[%emt 0:00:23]} Bxg5 {[%emt 0:00:08]} 39. Rxd7 {[%emt 0:00:22]} Qd2 {[%emt 0:00:45]} 40. Rdf7 {[%emt 0:00:00]} Qxc2 {[%emt 0:00:00]} 41. Rf8 {[%emt 0:08:23]} Qxd3 {[%emt 0:01:36]} 42. Kg2 {[%emt 0:02:11]} Qe4+ {[%emt 0:00:45]} 43. R1f3 {[%emt 0:00:56]} Qxe5 {[%emt 0:00:40]} 44. Rg8+ {[%emt 0:00:22]} Kh5 {[%emt 0:00:45]} 45. Rh3+ {[%emt 0:01:29]} Kg4 {[%emt 0:00:06]} 46. Rf8 {[%emt 0:01:11]} Qe2+ {[%emt 0:00:34]} 47. Rf2 {[%emt 0:00:52]} Qxf2+ {[%emt 0:00:08]} 48. Kxf2 {[%emt 0:00:05]} Kxh3 {[%emt 0:00:03]} 49. Kf3 {[%emt 0:00:15]} d3 {[%emt 0:00:07]} 50. b4 {[%emt 0:00:23]} e5 {[%emt 0:00:12]} 51. Kf2 {[%emt 0:00:18]} e4 {[%emt 0:00:05]} 52. Ke1 {[%emt 0:00:53]} Kg2 {[%emt 0:00:22]} 53. Kd1 {[%emt 0:00:38]} Kf3 {[%emt 0:00:04]} 54. Ke1 {[%emt 0:00:09]} e3 {[%emt 0:00:04]} 55. Kd1 {[%emt 0:00:08]} e2+ {[%emt 0:00:05]} 56. Ke1 {[%emt 0:00:16]} d2# {[%emt 0:00:03]} 0-1

[Event "European School-ch 2019"]
[Site "Mamaia"]
[Date "2019.06.02"]
[Round "3.22"]
[White "Krawczyk, Flawian"]
[Black "Gusev, Mikhail"]
[Result "1/2-1/2"]
[ECO "C07"]
[WhiteElo "1795"]
[BlackElo "1463"]
[Annotator "NA"]
[PlyCount "108"]
[EventDate "2019.05.31"]
[EventType "swiss"]
[EventCountry "ROU"]
[SourceTitle "playchess.com"]
[Source "ChessBase"]
[SourceQuality "1"]
[TimeControl "40/5400+30:1800+30"]

1. e4 {[%emt 0:00:00]} e6 {[%emt 0:00:00]} 2. d4 {[%emt 0:00:00]} d5 {[%emt 0:00:00]} 3. Nd2 {[%emt 0:00:00]} c5 {[%emt 0:00:00]} 4. Ngf3 {[%emt 0:00:00]} Nf6 {[%emt 0:00:24]} 5. exd5 {[%emt 0:05:23]} exd5 {[%emt 0:00:14]} 6. Bb5+ {[%emt 0:01:51]} Bd7 {[%emt 0:00:01]} 7. Bxd7+ {[%emt 0:00:28]} Nbxd7 {[%emt 0:00:18]} 8. O-O {[%emt 0:00:15]} Be7 {[%emt 0:00:09]} 9. Re1 {[%emt 0:01:23]} O-O {[%emt 0:00:27]} 10. c3 {[%emt 0:00:50]} Re8 {[%emt 0:02:16]} 11. Nf1 {[%emt 0:01:52]} Ne4 {[%emt 0:01:30]} 12. Ng3 {[%emt 0:01:50]} Ndf6 {[%emt 0:00:38]} 13. Bf4 {[%emt 0:03:32]} Qb6 {[%emt 0:01:57]} 14. Rb1 {[%emt 0:02:30]} Rac8 {[%emt 0:05:59]} 15. Nf5 {[%emt 0:02:36]} Bf8 {[%emt 0:01:10]} 16. Ne5 {[%emt 0:03:28]} cxd4 {[%emt 0:01:34]} 17. cxd4 {[%emt 0:01:36]} Qe6 {[%emt 0:09:46]} 18. Ng3 {[%emt 0:03:11]} Nxg3 {[%emt 0:04:34]} 19. hxg3 {[%emt 0:00:55]} Qf5 {[%emt 0:00:53]} 20. Qf3 {[%emt 0:05:17]} Rc2 {[%emt 0:04:24]} 21. g4 {[%emt 0:02:05]} Qc8 {[%emt 0:02:14]} 22. Bg5 {[%emt 0:07:42]} Re6 {[%emt 0:03:21]} 23. Bh4 {[%emt 0:11:42]} Qc7 {[%emt 0:07:07]} 24. Nd3 {[%emt 0:03:28]} Ne4 {[%emt 0:02:28]} 25. Nf4 {[%emt 0:04:35]} Nd2 {[%emt 0:05:32]} 26. Qg3 {[%emt 0:01:31]} Rxe1+ {[%emt 0:04:30]} 27. Rxe1 {[%emt 0:00:10]} Ne4 {[%emt 0:01:15]} 28. Nxd5 {[%emt 0:03:46]} Nxg3 {[%emt 0:01:02]} 29. Nxc7 {[%emt 0:00:07]} Ne2+ {[%emt 0:00:04]} 30. Kf1 {[%emt 0:00:10]} Nxd4 {[%emt 0:00:09]} 31. Nd5 {[%emt 0:01:01]} f6 {[%emt 0:00:37]} 32. Re4 {[%emt 0:02:21]} Bc5 {[%emt 0:01:11]} 33. b4 {[%emt 0:05:11]} Rc1+ {[%emt 0:00:06]} 34. Re1 {[%emt 0:00:01]} Rxe1+ {[%emt 0:00:02]} 35. Kxe1 {[%emt 0:00:01]} Nc2+ {[%emt 0:00:17]} 36. Kd2 {[%emt 0:00:35]} Nxb4 {[%emt 0:00:02]} 37. Nxb4 {[%emt 0:00:11]} Bxb4+ {[%emt 0:00:06]} 38. Kd3 {[%emt 0:00:04]} b5 {[%emt 0:00:49]} 39. f3 {[%emt 0:00:07]} Kf7 {[%emt 0:00:22]} 40. Bf2 {[%emt 0:00:00]} a5 {[%emt 0:00:00]} 41. Bb6 {[%emt 0:01:16]} a4 {[%emt 0:00:22]} 42. Kd4 {[%emt 0:00:10]} Ke6 {[%emt 0:00:14]} 43. Bc5 {[%emt 0:00:24]} Be1 {[%emt 0:00:42]} 44. Bf8 {[%emt 0:00:13]} Kf7 {[%emt 0:00:41]} 45. Bd6 {[%emt 0:00:28]} Ke6 {[%emt 0:21:30]} 46. Bf8 {[%emt 0:00:04]} g6 {[%emt 0:00:11]} 47. Kc5 {[%emt 0:01:03]} b4 {[%emt 0:00:01]} 48. Kc4 {[%emt 0:00:14]} b3 {[%emt 0:00:07]} 49. axb3 {[%emt 0:00:05]} axb3 {[%emt 0:00:02]} 50. Kxb3 {[%emt 0:00:07]} f5 {[%emt 0:00:31]} 51. gxf5+ {[%emt 0:00:24]} Kxf5 {[%emt 0:00:04]} 52. Bd6 {[%emt 0:00:12]} Bd2 {[%emt 0:00:48]} 53. Kc2 {[%emt 0:00:11]} Bf4 {[%emt 0:00:05]} 54. Be7 {[%emt 0:00:06]} Ke5 1/2-1/2

[Event "European School-ch 2019"]
[Site "Mamaia"]
[Date "2019.06.02"]
[Round "3.23"]
[White "Celik, Hasan Huseyin"]
[Black "Kotolashvili, Davit"]
[Result "1-0"]
[ECO "D35"]
[WhiteElo "1727"]
[BlackElo "1374"]
[Annotator "NA"]
[PlyCount "103"]
[EventDate "2019.05.31"]
[EventType "swiss"]
[EventCountry "ROU"]
[SourceTitle "playchess.com"]
[Source "ChessBase"]
[SourceQuality "1"]
[TimeControl "40/5400+30:1800+30"]

1. d4 {[%emt 0:00:00]} d5 {[%emt 0:00:00]} 2. c4 {[%emt 0:00:00]} e6 {[%emt 0:00:00]} 3. cxd5 {[%emt 0:00:00]} exd5 {[%emt 0:00:00]} 4. Nc3 {[%emt 0:00:00]} Nf6 {[%emt 0:00:00]} 5. Bg5 {[%emt 0:00:00]} Be7 {[%emt 0:00:02]} 6. e3 {[%emt 0:00:02]} c6 {[%emt 0:00:06]} 7. Bd3 {[%emt 0:00:04]} Nbd7 {[%emt 0:00:15]} 8. Qc2 {[%emt 0:00:16]} O-O {[%emt 0:00:32]} 9. Nge2 {[%emt 0:08:13]} Re8 {[%emt 0:01:28]} 10. O-O {[%emt 0:00:36]} Nf8 {[%emt 0:00:31]} 11. Rae1 {[%emt 0:03:30]} Ng6 {[%emt 0:10:13]} 12. Nf4 {[%emt 0:05:50]} Nxf4 {[%emt 0:02:53]} 13. Bxf4 {[%emt 0:00:14]} Bd6 {[%emt 0:00:51]} 14. Bxd6 {[%emt 0:06:45]} Qxd6 {[%emt 0:00:02]} 15. f3 {[%emt 0:01:34]} h6 {[%emt 0:03:12]} 16. Qf2 {[%emt 0:05:28]} Be6 {[%emt 0:02:23]} 17. Qg3 {[%emt 0:03:26]} Rad8 {[%emt 0:01:28]} 18. Qxd6 {[%emt 0:00:45]} Rxd6 {[%emt 0:00:02]} 19. b4 {[%emt 0:00:12]} Nd7 {[%emt 0:05:32]} 20. a4 {[%emt 0:09:54]} b6 {[%emt 0:00:52]} 21. Rc1 {[%emt 0:04:41]} Nf8 {[%emt 0:09:21]} 22. Kf2 {[%emt 0:05:39]} Bd7 {[%emt 0:00:22]} 23. Rfe1 {[%emt 0:03:29]} Ne6 {[%emt 0:03:33]} 24. Rc2 {[%emt 0:07:15]} Rc8 {[%emt 0:05:13]} 25. Rec1 {[%emt 0:05:33]} Rf8 {[%emt 0:05:53]} 26. Nd1 {[%emt 0:03:27]} f5 {[%emt 0:01:16]} 27. f4 {[%emt 0:00:41]} g5 {[%emt 0:06:54]} 28. g3 {[%emt 0:00:12]} gxf4 {[%emt 0:00:30]} 29. gxf4 {[%emt 0:00:06]} Kg7 {[%emt 0:00:28]} 30. Nb2 {[%emt 0:01:14]} Kf6 {[%emt 0:00:56]} 31. Be2 {[%emt 0:00:59]} a5 {[%emt 0:06:09]} 32. bxa5 {[%emt 0:00:15]} bxa5 {[%emt 0:00:01]} 33. Nd3 {[%emt 0:00:30]} Rb8 {[%emt 0:00:19]} 34. Ne5 {[%emt 0:01:07]} Nd8 {[%emt 0:00:51]} 35. Rc5 {[%emt 0:01:35]} Ra8 {[%emt 0:00:10]} 36. Bd3 {[%emt 0:00:58]} Be8 {[%emt 0:00:56]} 37. Rb1 {[%emt 0:01:12]} Ne6 {[%emt 0:00:27]} 38. Rc2 {[%emt 0:00:33]} Ra7 39. Rb6 {[%emt 0:00:44]} Nd8 {[%emt 0:00:52]} 40. Rb8 {[%emt 0:00:00]} Bf7 {[%emt 0:00:00]} 41. Rxd8 {[%emt 0:02:22]} Rxd8 {[%emt 0:03:30]} 42. Nxc6 {[%emt 0:00:01]} Rdd7 {[%emt 0:00:51]} 43. Nxa7 {[%emt 0:00:06]} Rxa7 {[%emt 0:00:01]} 44. Rc5 {[%emt 0:00:30]} Be6 {[%emt 0:00:30]} 45. Bc2 {[%emt 0:00:30]} Ke7 {[%emt 0:00:30]} 46. Kg3 {[%emt 0:00:30]} Kd6 {[%emt 0:00:30]} 47. Kh3 {[%emt 0:00:30]} Rc7 {[%emt 0:00:30]} 48. Rxc7 {[%emt 0:00:30]} Kxc7 {[%emt 0:00:30]} 49. Kh4 {[%emt 0:00:30]} Bf7 {[%emt 0:00:30]} 50. Bxf5 {[%emt 0:00:30]} Be6 {[%emt 0:00:35]} 51. Bc2 Bf7 52. Bf5 {[%emt 0:01:28]} 1-0